bitfinex/quotes_SOLUSD_20251002
["timestamp","ask_amount","ask_price","bid_price","bid_amount"]
[1759373027746,4.46664464,223.89,223.8,0.7]
[1759373028101,4.46664464,223.89,223.82,0.5]
[1759373028427,4.46664464,223.89,223.82,1.2]
[1759373030136,4.46664464,223.89,223.83,32.58]
[1759373030624,4.46664464,223.89,223.82,1.2]
[1759373030803,4.46664464,223.89,223.83,32.58]
[1759373032016,4.46664464,223.89,223.77,11.17218572]
[1759373032017,3.91922894,223.87,223.78,0.7]
[1759373032219,3.91922894,223.85,223.78,0.7]
[1759373032523,4.46747676,223.84,223.79,32.56]
[1759373032716,5.14747676,223.84,223.79,32.56]
[1759373033023,0.68,223.83,223.8,32.56]
[1759373033534,0.68,223.83,223.8,32.54]
[1759373033921,0.7,223.82,223.71,4.47007286]
[1759373034127,4.61922894,223.81,223.69,0.72]
[1759373034333,3.91922894,223.79,223.69,0.72]
[1759373034636,3.91922894,223.77,223.69,32.56]
[1759373034820,0.7,223.76,223.69,32.56]
[1759373035324,0.7,223.75,223.69,32.56]
[1759373035537,0.84216157,223.74,223.61,13.51416376]
[1759373035840,0.7,223.73,223.62,33.26]
[1759373036045,0.7,223.73,223.63,0.72]
[1759373036210,408.43383791,223.97,223.63,0.72]
[1759373036211,0.7,223.82,223.66,10.87647521]
[1759373036413,0.7,223.81,223.7,20.8]
[1759373036716,0.7,223.81,223.71,0.72]
[1759373036717,0.28432314,223.81,223.71,0.72]
[1759373036922,0.7,223.8,223.71,33.6]
[1759373037134,0.7,223.86,223.74,20.8]
[1759373037336,0.7,223.86,223.75,0.72]
[1759373037839,0.7,223.86,223.76,32.92]
[1759373038048,0.7,223.85,223.76,32.92]
[1759373038408,4.46747676,223.84,223.76,32.92]
[1759373038736,0.7,223.83,223.77,32.9]
[1759373039325,4.61922894,223.82,223.71,0.72]
[1759373039641,4.61922894,223.82,223.72,32.9]
[1759373039825,4.61922894,223.82,223.72,33.62]
[1759373040248,53.20963027,223.89,223.75,20.8]
[1759373040249,0.7,223.89,223.75,20.8]
[1759373040426,0.98432314,223.89,223.76,5.189074]
[1759373040612,0.7,223.89,223.77,0.72]
[1759373040943,3.91922894,223.85,223.7,10.87647521]
[1759373041129,0.7,223.84,223.74,21.52]
[1759373041447,3.91922894,223.85,223.74,21.52]
[1759373041448,0.7,223.83,223.74,21.52]
[1759373041848,0.7,223.83,223.75,32.92]
[1759373042015,0.7,223.83,223.74,0.72]
[1759373042218,3.91922894,223.82,223.75,32.92]
[1759373042538,4.46807559,223.81,223.75,32.92]
[1759373044741,4.46807559,223.81,223.75,0.72]
[1759373044944,4.46807559,223.81,223.75,33.64]
[1759373045445,5.16807559,223.81,223.75,32.92]
[1759373045741,4.46807559,223.81,223.75,32.86]
[1759373046046,8.38707658,223.83,223.76,0.72]
[1759373046621,4.46740498,223.85,223.76,0.72]
[1759373047028,0.7,223.9,223.76,0.72]
[1759373047732,4.46647907,223.89,223.77,4.46887429]
[1759373047919,4.46647907,223.89,223.78,0.72]
[1759373048519,8.38570801,223.89,223.78,0.72]
[1759373048720,5.16647907,223.89,223.78,0.72]
[1759373049544,5.16647907,223.89,223.79,4.4684749]
[1759373049729,5.16647907,223.89,223.8,0.72]
[1759373049928,5.16647907,223.89,223.81,32.9]
[1759373050269,5.16647907,223.89,223.81,33.62]
[1759373050946,9.08570801,223.89,223.81,33.62]
[1759373051541,9.08570801,223.89,223.81,37.3680467]
[1759373051743,9.08570801,223.89,223.82,0.72]
[1759373051939,5.16647907,223.89,223.82,0.72]
[1759373052346,4.46647907,223.89,223.82,0.72]
[1759373052962,4.46647907,223.89,223.82,5.18786781]
[1759373054161,4.46647907,223.89,223.82,0.72]
[1759373054762,8.38570801,223.89,223.82,0.72]
[1759373055062,0.7,223.88,223.81,32.9]
[1759373055577,0.7,223.88,223.77,90.37218572]
[1759373055578,8.38610703,223.87,223.78,4.4684815]
[1759373055735,3.91922894,223.86,223.79,32.78]
[1759373056137,3.91922894,223.82,223.7,11.17534916]
[1759373056338,3.91922894,223.81,223.74,0.72]
[1759373057350,3.91922894,223.8,223.74,0.72]
[1759373057566,3.91922894,223.78,223.71,32.8]
[1759373057740,3.91922894,223.77,223.71,37.99003703]
[1759373059168,3.91922894,223.76,223.7,0.72]
[1759373059358,3.91922894,223.74,223.64,34.84]
[1759373059559,3.91922894,223.73,223.67,0.72]
[1759373059749,3.91922894,223.74,223.67,0.72]
[1759373060240,0.7,223.76,223.67,0.72]
[1759373060441,3.91922894,223.75,223.67,0.72]
[1759373060642,4.61922894,223.76,223.67,0.72]
[1759373061161,0.7,223.76,223.67,0.72]
[1759373061471,4.61922894,223.76,223.67,0.72]
[1759373061654,0.7,223.76,223.67,0.72]
[1759373061853,3.91922894,223.75,223.67,0.72]
[1759373062170,4.58922894,223.75,223.67,0.72]
[1759373063243,3.91922894,223.74,223.67,0.72]
[1759373063645,0.71,223.73,223.67,0.72]
[1759373063855,4.46987305,223.72,223.65,32.78]
[1759373064176,5.17987305,223.72,223.65,32.78]
[1759373064664,5.17987305,223.72,223.65,37.25126246]
[1759373065062,5.17987305,223.72,223.65,32.78]
[1759373065438,19.56378462,223.72,223.62,79.2]
[1759373065644,4.62922894,223.71,223.63,32.72]
[1759373065877,4.47027268,223.7,223.63,32.72]
[1759373066173,4.47027268,223.7,223.63,33.44]
[1759373067544,19.56518333,223.7,223.63,32.72]
[1759373067748,4.62922894,223.69,223.6,0.72]
[1759373067949,4.62922894,223.69,223.63,32.7]
[1759373067950,4.47067238,223.68,223.63,32.7]
[1759373068157,0.71,223.67,223.63,32.7]
[1759373068346,0.71,223.81,223.67,20.8]
[1759373068547,0.71,223.85,223.71,20.8]
[1759373068775,0.71,223.85,223.72,0.72]
[1759373068947,0.71,223.85,223.73,33.04]
[1759373069148,0.71,223.85,223.74,0.72]
[1759373070080,4.46747676,223.84,223.75,4.46927374]
[1759373070378,4.46747676,223.84,223.76,0.72]
[1759373071058,4.46747676,223.84,223.77,4.46887429]
[1759373071563,4.46747676,223.84,223.76,0.72]
[1759373071767,0.71,223.83,223.76,0.72]
[1759373072371,0.71,223.83,223.75,4.469235]
[1759373072573,4.46747676,223.84,223.76,0.72]
[1759373073153,4.46747676,223.84,223.77,4.46887429]
[1759373073448,22.82147407,224.0,223.78,0.72]
[1759373073449,0.71,223.87,223.78,0.72]
[1759373075144,0.71,223.87,223.79,4.4684749]
[1759373076069,4.46707763,223.86,223.78,0.72]
[1759373076269,5.17707763,223.86,223.78,0.72]
[1759373076573,5.17707763,223.86,223.78,5.18862741]
[1759373076770,5.17707763,223.86,223.78,0.72]
[1759373077149,20.26400066,223.86,223.74,5.18935011]
[1759373077454,0.99432314,223.85,223.74,38.08935011]
[1759373077645,0.71,223.84,223.74,33.62]
[1759373077848,0.71,223.83,223.74,32.9]
[1759373078075,0.71,223.82,223.74,32.9]
[1759373078384,0.71,223.81,223.69,0.72]
[1759373078564,4.62922894,223.81,223.69,33.62]
[1759373078752,0.71,223.81,223.7,0.72]
[1759373079380,4.46827524,223.8,223.7,5.19007417]
[1759373079580,4.46827524,223.8,223.71,0.72]
[1759373080189,4.46827524,223.8,223.68,20.8]
[1759373080190,0.71,223.79,223.68,0.72]
[1759373080351,0.71,223.79,223.68,31.68]
[1759373080677,0.71,223.79,223.69,0.72]
[1759373081462,4.46867459,223.78,223.69,5.19043861]
[1759373081656,5.17867459,223.78,223.69,5.19043861]
[1759373081858,0.71,223.77,223.69,0.72]
[1759373083285,0.71,223.77,223.69,5.19045183]
[1759373083461,4.4684749,223.79,223.71,4.47007286]
[1759373083658,4.4684749,223.79,223.72,0.72]
[1759373084588,0.71,223.78,223.72,0.72]
[1759373085988,4.46887429,223.77,223.72,0.72]
[1759373086363,5.17887429,223.77,223.72,0.72]
[1759373086866,0.71,223.76,223.69,0.72]
[1759373087385,0.71,223.78,223.69,0.72]
[1759373087564,0.71,223.81,223.69,79.92]
[1759373087765,0.71,223.81,223.7,0.72]
[1759373088067,5.17811357,223.81,223.71,15.64525501]
[1759373088273,5.17811357,223.81,223.72,0.72]
[1759373088891,0.71,223.81,223.72,0.72]
[1759373089071,1.50593649,223.79,223.69,79.92]
[1759373089269,1.50593649,223.76,223.69,84.39046485]
[1759373089562,1.50593649,223.77,223.69,5.19046485]
[1759373090172,4.469074,223.76,223.69,5.19046485]
[1759373090583,0.71,223.77,223.69,4.47046485]
[1759373090794,4.46842795,223.8,223.7,0.72]
[1759373090795,2.21593649,223.8,223.7,0.72]
[1759373090993,0.71,223.8,223.7,0.72]
[1759373092092,4.4684749,223.79,223.71,4.47007286]
[1759373092391,4.4684749,223.79,223.72,33.58]
[1759373092976,4.4684749,223.79,223.73,0.72]
[1759373093173,4.4684749,223.79,223.73,5.18955884]
[1759373093386,0.71,223.85,223.74,0.72]
[1759373093979,3.06323725,223.85,223.75,32.86]
[1759373094312,2.35323725,223.83,223.75,33.58]
[1759373094670,3.01323725,223.84,223.75,33.58]
[1759373095074,4.46767636,223.83,223.75,38.04908506]
[1759373095370,3.01323725,223.82,223.75,33.58]
[1759373097109,4.46807559,223.81,223.75,33.58]
[1759373097600,6.82131284,223.81,223.75,33.58]
[1759373098682,17.99150183,223.81,223.75,33.58]
[1759373098899,18.65150183,223.81,223.75,33.58]
[1759373099203,18.65150183,223.81,223.75,32.86]
[1759373099204,2.35323725,223.8,223.75,32.86]
[1759373099385,0.66,223.79,223.75,32.86]
[1759373099776,3.01323725,223.79,223.75,32.86]
[1759373100311,0.66,223.78,223.75,32.86]
[1759373100471,2.35323725,223.78,223.71,33.48]
[1759373100673,3.01323725,223.78,223.71,33.48]
[1759373101309,4.46887429,223.77,223.71,33.48]
[1759373101508,2.35323725,223.76,223.71,32.76]
[1759373101685,2.35323725,223.76,223.63,0.72]
[1759373101686,2.35323725,223.72,223.63,0.72]
[1759373101887,2.35323725,223.69,223.63,0.72]
[1759373103011,4.46887429,223.77,223.63,0.72]
[1759373103314,4.46947349,223.74,223.66,4.47107216]
[1759373103481,4.46947349,223.74,223.67,33.5]
[1759373103674,4.46947349,223.74,223.68,0.72]
[1759373103885,2.35323725,223.75,223.68,0.72]
[1759373104177,3.01323725,223.75,223.68,0.72]
[1759373104374,2.35323725,223.74,223.68,0.72]
[1759373104602,3.01323725,223.75,223.68,0.72]
[1759373105403,7.48260948,223.75,223.68,0.72]
[1759373105779,7.48260948,223.75,223.68,5.19066112]
[1759373106183,5.12937223,223.75,223.68,5.19066112]
[1759373106506,7.48260948,223.75,223.68,0.72]
[1759373106707,2.35323725,223.74,223.68,0.72]
[1759373106915,5.12937223,223.75,223.67,37.25087133]
[1759373106916,3.01323725,223.73,223.67,32.78]
[1759373107086,2.35323725,223.68,223.63,0.72]
[1759373107406,3.01323725,223.67,223.62,32.72]
[1759373107577,2.35323725,223.65,223.62,32.72]
[1759373107784,11.17460453,223.73,223.57,34.86]
[1759373107785,3.01323725,223.64,223.59,32.74]
[1759373107979,20.8,223.7,223.59,33.46]
[1759373107980,2.35323725,223.65,223.59,33.46]
[1759373108289,3.01323725,223.65,223.59,33.46]
[1759373108494,2.35323725,223.64,223.59,33.46]
[1759373108811,3.01323725,223.63,223.59,32.74]
[1759373109011,2.35323725,223.64,223.59,33.46]
[1759373109212,3.01323725,223.64,223.59,33.46]
[1759373109408,7.48474155,223.64,223.59,0.72]
[1759373109609,3.01323725,223.64,223.59,33.46]
[1759373109797,6.82475471,223.64,223.59,32.74]
[1759373109996,7.48475471,223.64,223.59,33.46]
[1759373111115,5.13151746,223.64,223.59,33.46]
[1759373111290,2.35323725,223.63,223.59,33.46]
[1759373111614,6.82493258,223.63,223.59,33.46]
[1759373111792,4.47169533,223.63,223.59,32.74]
[1759373112298,4.47169533,223.63,223.59,33.46]
[1759373112499,4.47169533,223.63,223.59,32.74]
[1759373112500,5.13169533,223.63,223.59,32.74]
[1759373112703,0.66,223.62,223.59,32.74]
[1759373113403,0.66,223.68,223.6,0.72]
[1759373114199,1.11179362,223.88,223.63,54.22]
[1759373114424,0.45179362,223.88,223.71,0.28432314]
[1759373114725,0.45179362,223.88,223.76,31.67647521]
[1759373114890,0.45179362,223.88,223.81,20.8]
[1759373115093,0.45179362,223.88,223.82,34.04]
[1759373115340,0.45179362,223.88,223.83,3.30032747]
[1759373115627,0.45179362,223.88,223.84,38.04295476]
[1759373115791,0.45179362,223.88,223.85,3.30032747]
[1759373116000,0.45179362,223.88,223.86,4.02032747]
[1759373116219,0.45179362,223.88,223.87,33.3]
[1759373116418,0.45179362,223.88,223.87,34.02]
[1759373116622,0.45179362,223.88,223.87,39.08997053]
[1759373117611,1e-08,223.88,223.87,67.99717627]
[1759373117812,1e-08,223.88,223.87,54.43332383]
[1759373118016,0.5,224.0,223.87,54.43332383]
[1759373118017,0.5,224.0,223.87,65.60051907]
[1759373118317,0.5,224.0,223.91,20.8]
[1759373118482,0.5,224.0,223.92,46.84385244]
[1759373118687,0.5,224.0,223.92,47.56385244]
[1759373118889,0.5,224.0,223.93,0.72]
[1759373119491,0.5,224.0,223.93,5.18551065]
[1759373119691,0.5,224.0,223.94,0.72]
[1759373121003,0.5,224.0,223.96,0.5]
[1759373121329,0.5,224.0,223.97,33.22]
[1759373122025,0.5,224.0,223.97,33.93]
[1759373122226,0.5,224.0,223.96,0.5]
[1759373122539,0.5,224.0,223.97,33.2]
[1759373122912,1.16,224.0,223.97,33.2]
[1759373123108,0.5,224.0,223.97,33.2]
[1759373123914,0.5,224.0,223.97,33.87]
[1759373125645,0.5,224.0,223.97,33.2]
[1759373125946,1.22,224.0,223.96,0.5]
[1759373126254,1.22,224.0,223.98,33.16]
[1759373126442,0.72,223.99,223.96,0.5]
[1759373126754,0.5,224.0,223.97,33.79]
[1759373126915,0.5,224.0,223.98,0.67]
[1759373127112,0.5,224.0,223.99,0.67]
[1759373127540,0.5,224.0,223.99,5.13448502]
[1759373129245,0.5,224.0,223.99,38.23448502]
[1759373129453,0.5,224.0,223.99,69.91096023]
[1759373131360,0.5,224.0,223.99,49.11096023]
[1759373133536,1e-08,224.0,223.99,49.39528337]
[1759373133740,1e-08,224.0,223.99,62.95913581]
[1759373134036,0.1,224.07,224.03,10.87647521]
[1759373134256,0.1,224.07,224.04,33.02]
[1759373134431,0.1,224.07,224.04,33.69]
[1759373134629,0.1,224.07,224.04,33.02]
[1759373134959,0.82,224.07,224.02,21.47]
[1759373135126,0.82,224.07,223.99,108.38955001]
[1759373135127,0.72,224.06,223.99,0.67]
[1759373135335,0.72,224.06,224.0,33.0]
[1759373136053,0.72,224.06,224.0,37.46426248]
[1759373137035,0.1,224.07,224.03,20.8]
[1759373137238,5.28291934,224.07,224.04,33.02]
[1759373137544,5.28291934,224.07,223.98,0.67]
[1759373137545,4.46328944,224.05,223.98,25.26463403]
[1759373137734,0.72,224.04,223.99,33.0]
[1759373138048,5.28306295,224.07,223.99,33.67]
[1759373138256,0.72,224.06,223.99,33.67]
[1759373138427,0.72,224.06,223.99,33.0]
[1759373139040,0.72,224.06,224.0,33.0]
[1759373139431,0.72,224.05,224.0,33.0]
[1759373139640,0.72,224.04,224.0,33.0]
[1759373140150,0.82,224.07,224.0,37.46427295]
[1759373140327,0.82,224.07,224.0,38.13427295]
[1759373140953,0.82,224.07,224.0,33.67]
[1759373141152,0.72,224.06,224.0,33.0]
[1759373141329,0.1,224.07,224.0,33.67]
[1759373141531,4.56294405,224.07,224.0,38.13427463]
[1759373141850,0.72,224.06,224.0,33.0]
[1759373142357,0.72,224.05,224.0,33.0]
[1759373142529,0.72,224.05,224.0,37.4642679]
[1759373142856,0.72,224.05,224.0,38.1342679]
[1759373143035,0.72,224.05,224.0,33.0]
[1759373143554,0.72,224.05,224.0,37.4642767]
[1759373143856,4.56290594,224.07,224.01,0.67]
[1759373144253,4.56290594,224.07,224.0,4.4642767]
[1759373144454,5.28290594,224.07,224.01,32.94]
[1759373144753,5.28290594,224.07,224.0,4.4642767]
[1759373144946,5.28290594,224.07,224.01,32.92]
[1759373145348,0.72,224.06,224.01,32.92]
[1759373145656,0.72,224.05,224.02,32.9]
[1759373146033,0.72,224.04,224.02,32.9]
[1759373146541,0.72,224.03,224.02,32.9]
[1759373146859,0.72,224.03,224.02,32.88]
[1759373147240,5.18368789,224.03,223.96,0.5]
[1759373147448,16.34290763,224.03,223.94,0.67]
[1759373147637,16.34290763,224.03,223.95,32.86]
[1759373147956,0.72,224.02,223.95,32.86]
[1759373148260,0.72,224.02,223.94,0.67]
[1759373148261,0.72,224.01,223.96,32.86]
[1759373148456,0.72,224.01,223.97,32.86]
[1759373148657,0.72,224.0,223.97,32.86]
[1759373148841,0.72,223.99,223.97,32.86]
[1759373149354,5.18464831,223.99,223.97,32.86]
[1759373149660,11.15921974,224.03,223.97,32.86]
[1759373149840,0.72,224.01,223.97,32.86]
[1759373150335,5.18367864,224.04,223.97,32.86]
[1759373150660,5.18367864,224.04,223.97,33.53]
[1759373150863,0.1,224.07,223.98,0.67]
[1759373151064,5.28289505,224.07,223.99,32.94]
[1759373151249,0.72,224.06,224.0,32.94]
[1759373151558,5.18315013,224.06,224.0,32.94]
[1759373152661,19.53406554,224.06,224.0,32.94]
[1759373152876,19.53406554,224.06,223.89,22.61620037]
[1759373152877,3.91318981,224.02,223.93,0.67]
[1759373153168,0.72,224.01,223.94,32.96]
[1759373153342,0.72,224.01,223.89,10.87647521]
[1759373153343,4.63318981,224.0,223.86,34.84]
[1759373153536,0.72,223.99,223.9,0.67]
[1759373153744,0.72,223.99,223.91,32.96]
[1759373154055,0.72,223.99,223.92,0.68]
[1759373154256,0.72,223.99,223.91,32.96]
[1759373154434,0.72,223.98,223.91,32.96]
[1759373154635,4.46508305,223.96,223.91,32.96]
[1759373154942,4.46508305,223.96,223.87,0.68]
[1759373154943,0.72,223.95,223.87,0.68]
[1759373155270,4.63318981,223.95,223.88,32.96]
[1759373155458,3.91318981,223.93,223.88,32.96]
[1759373155767,3.91318981,223.91,223.88,32.96]
[1759373155972,0.72,223.9,223.88,32.96]
[1759373156179,0.72,223.89,223.82,0.68]
[1759373156343,3.91318981,223.88,223.79,0.68]
[1759373156542,0.72,223.87,223.8,32.96]
[1759373156751,4.46707763,223.86,223.8,32.96]
[1759373157355,0.72,223.91,223.81,0.68]
[1759373157559,4.4659864,223.92,223.83,20.8]
[1759373157843,5.18535492,223.95,223.84,0.68]
[1759373158038,5.18535492,223.95,223.85,32.96]
[1759373158441,1.50408294,223.93,223.85,32.96]
[1759373159075,4.46588067,223.92,223.85,32.96]
[1759373159301,1.50408294,223.96,223.86,0.68]
[1759373159469,4.46526439,223.96,223.86,0.68]
[1759373159666,6.68891407,223.98,223.86,0.68]
[1759373160068,1.50408294,223.97,223.86,0.68]
[1759373160265,3.91649789,223.96,223.86,0.68]
[1759373160473,3.91649789,223.94,223.86,0.68]
[1759373160684,3.91649789,223.92,223.87,32.94]
[1759373160863,0.72,223.93,223.87,33.62]
[1759373161074,5.18584477,223.93,223.87,33.62]
[1759373161274,9.10234266,223.93,223.87,32.94]
[1759373161569,5.18584477,223.93,223.87,32.94]
[1759373162362,4.46584477,223.93,223.87,32.94]
[1759373162564,5.18546213,223.95,223.88,0.68]
[1759373163093,0.72,223.99,223.89,4.46647907]
[1759373163269,9.10051272,224.02,223.9,0.68]
[1759373164069,3.91649789,224.01,223.9,0.68]
[1759373164272,9.10051272,224.02,223.91,15.63128042]
[1759373164578,0.72,224.02,223.92,33.62]
[1759373164781,0.72,224.02,223.93,0.68]
[1759373165092,4.46377047,224.03,223.93,0.68]
[1759373165466,0.72,224.04,223.94,4.46548182]
[1759373165664,4.63649789,224.04,223.95,0.68]
[1759373165863,9.10004824,224.04,223.95,0.68]
[1759373166307,3.91649789,224.03,223.95,0.68]
[1759373166500,4.63649789,224.04,223.95,0.68]
[1759373166796,9.10004691,224.04,223.95,0.68]
[1759373166988,3.91649789,224.03,223.95,0.68]
[1759373167589,9.10004691,224.04,223.96,4.46508305]
[1759373167796,9.10004691,224.04,223.97,32.9]
[1759373168170,0.72,224.03,223.97,32.9]
[1759373168677,0.72,224.05,223.98,0.68]
[1759373168881,3.91649789,224.04,223.97,32.9]
[1759373169181,3.91649789,224.03,223.97,32.9]
[1759373169973,3.91649789,224.03,223.97,37.36486036]
[1759373170274,8.38016985,224.04,223.97,37.36486036]
[1759373170483,3.91649789,224.06,223.98,0.68]
[1759373171173,3.91649789,224.05,223.98,0.68]
[1759373171371,4.63649789,224.04,223.97,32.9]
[1759373171689,8.37982479,224.05,223.97,38.0448443]
[1759373172088,4.4633269,224.05,223.98,0.68]
[1759373172485,4.4633269,224.05,223.97,32.9]
[1759373172486,3.91649789,224.04,223.97,32.9]
[1759373172985,9.09982479,224.05,223.97,32.9]
[1759373174199,9.09982479,224.05,223.97,37.36486382]
[1759373174495,9.09982479,224.05,223.98,0.68]
[1759373175501,3.91649789,224.06,223.98,0.68]
[1759373176395,0.1,224.07,223.99,10.87647521]
[1759373176696,0.1,224.07,224.0,16.30499999]
[1759373177088,0.1,224.07,224.01,0.68]
[1759373177284,0.1,224.07,224.02,32.8]
[1759373177675,0.82,224.07,224.02,32.8]
[1759373177926,0.1,224.07,224.02,33.48]
[1759373178199,3.91649789,224.05,223.99,33.46]
[1759373178385,0.1,224.07,224.0,0.68]
[1759373178584,0.1,224.07,224.01,4.46408642]
[1759373178794,0.1,224.07,224.02,0.68]
[1759373178973,0.1,224.07,224.03,0.68]
[1759373179272,0.1,224.07,224.04,32.8]
[1759373180503,0.1,224.07,224.04,37.94341419]
[1759373181984,3.91649789,224.05,223.97,5.14487876]
[1759373182289,0.72,224.04,223.98,32.76]
[1759373182615,1.50327526,224.06,223.98,32.76]
[1759373182909,2.22327526,224.04,223.98,32.76]
[1759373183219,4.56289165,224.07,223.92,10.87647521]
[1759373183220,1.50327526,224.01,223.92,4.46578024]
[1759373183393,1.50327526,224.01,223.93,33.48]
[1759373183594,2.22327526,224.02,223.93,33.48]
[1759373183913,5.96699179,224.03,223.95,4.46528242]
[1759373184110,1.50327526,224.03,223.96,0.69]
[1759373184405,1.50327526,224.02,223.97,32.76]
[1759373184600,2.22327526,224.02,223.97,32.76]
[1759373185079,5.96699147,224.03,223.98,0.69]
[1759373185284,2.22327526,224.02,223.97,32.76]
[1759373185484,1.50327526,224.02,223.97,32.76]
[1759373185693,0.72,224.02,223.97,32.76]
[1759373185911,4.46408642,224.01,223.97,32.76]
[1759373186288,0.72,224.0,223.97,32.76]
[1759373186489,0.72,223.99,223.97,32.76]
[1759373186699,5.96736168,224.01,223.97,32.76]
[1759373186883,5.18408642,224.01,223.97,32.76]
[1759373187078,0.72,224.0,223.97,32.76]
[1759373187700,4.46408642,224.01,223.97,32.76]
[1759373187899,5.18408642,224.01,223.97,32.76]
[1759373188702,0.72,224.0,223.97,32.76]
[1759373189491,0.72,223.99,223.97,32.76]
[1759373190102,5.18468085,223.99,223.97,32.76]
[1759373190916,2.22327526,223.98,223.92,32.68]
[1759373191210,2.22327526,223.97,223.92,32.68]
[1759373191602,0.72,223.96,223.92,32.68]
[1759373191803,2.22327526,223.95,223.87,20.8]
[1759373192113,4.46548182,223.94,223.88,32.68]
[1759373192292,4.46548182,223.94,223.88,33.37]
[1759373193009,1.50327526,223.96,223.88,37.14660901]
[1759373193194,1.50327526,223.96,223.89,0.69]
[1759373194284,4.46511886,223.96,223.89,5.1564243]
[1759373194490,4.46511886,223.96,223.9,0.69]
[1759373195912,4.46488368,223.97,223.9,5.1562356]
[1759373196314,0.72,223.98,223.9,5.1562356]
[1759373196510,4.46446828,224.0,223.91,0.69]
[1759373197509,2.22327526,224.04,223.91,0.69]
[1759373197725,0.72,224.04,223.91,0.69]
[1759373198124,5.28306787,224.07,223.93,10.87647521]
[1759373198305,5.28306787,224.07,223.94,33.31]
[1759373198621,5.28306787,224.07,223.95,0.69]
[1759373198799,0.82,224.07,223.95,0.69]
[1759373199202,5.28296741,224.07,223.95,0.69]
[1759373200506,0.82,224.07,223.99,20.8]
[1759373200708,0.82,224.07,224.0,32.6]
[1759373201404,5.28299308,224.07,224.0,32.6]
[1759373201606,0.1,224.07,224.01,0.69]
[1759373202510,0.1,224.07,224.02,4.46388715]
[1759373202701,0.1,224.07,224.03,0.69]
[1759373203021,0.1,224.07,224.04,0.69]
[1759373203227,0.1,224.07,224.05,32.58]
[1759373203427,0.1,224.07,224.05,33.27]
[1759373203631,0.1,224.07,224.05,32.58]
[1759373204303,0.1,224.07,224.06,0.69]
[1759373204503,0.1,224.07,224.06,5.15309024]
[1759373205928,0.1,224.07,224.03,20.8]
[1759373206121,0.1,224.07,224.06,20.8]
[1759373206624,0.1,224.07,224.06,0.69]
[1759373207337,0.1,224.07,224.04,32.6]
[1759373207639,0.1,224.07,224.05,0.69]
[1759373207839,0.1,224.07,224.06,0.69]
[1759373209310,0.1,224.07,224.04,32.6]
[1759373209816,0.1,224.07,224.05,0.69]
[1759373210018,0.1,224.07,224.04,37.06339524]
[1759373210333,0.1,224.07,224.06,0.69]
[1759373210535,0.1,224.07,224.06,14.37520306]
[1759373213022,0.1,224.07,224.06,13.68520306]
[1759373213217,0.1,224.07,224.06,0.69]
[1759373213730,0.1,224.07,224.04,32.6]
[1759373213924,0.1,224.07,224.05,0.67]
[1759373214120,0.1,224.07,224.05,13.28407765]
[1759373214327,0.1,224.07,224.05,0.67]
[1759373214525,0.1,224.07,224.06,4.46309024]
[1759373214848,0.1,224.07,224.06,5.13309024]